fUSD/lending_fUSD_20251221
["ID","MTS","AMOUNT","RATE_DAILY","PERIOD"]
[399312280,1766283042206,-196.85112963,0.000169,2]
[399312281,1766283042215,-325.86221162,0.000169,2]
[399312282,1766283042225,-6991.27691404,0.000169,2]
[399312283,1766283042234,-809.43749916,0.000169,2]
[399312284,1766283042244,-500.0,0.000169,2]
[399312285,1766283042253,-500.0,0.000169,2]
[399312286,1766283042263,-500.0,0.000169,2]
[399312287,1766283042277,-500.0,0.000169,2]
[399312288,1766283042286,-500.0,0.000169,2]
[399312289,1766283042296,-316.28731491,0.000169,2]
[399312290,1766283042306,-3489.0,0.000169,2]
[399312291,1766283042315,-294.2758975,0.00016941,2]
[399312292,1766283042324,-500.0,0.00016973,2]
[399312293,1766283042334,-500.0,0.00016973,2]
[399312294,1766283042344,-192.91130347,0.00016973,2]
[399312295,1766283042354,-52831.42,0.00016986,2]
[399312296,1766283042364,-600.0,0.00016986,2]
[399312297,1766283042373,-161.97456266,0.00016997,2]
[399312298,1766283042383,-500.0,0.00016999,2]
[399312299,1766283042392,-501.68554777,0.00016999,2]
[399312300,1766283042401,-300.0,0.00016999,2]
[399312301,1766283042411,-300.0,0.00016999,2]
[399312302,1766283042421,-300.0,0.00016999,2]
[399312303,1766283042430,-300.0,0.00016999,2]
[399312304,1766283042440,-356172.06445247,0.00017,2]
[399312305,1766283042456,-1380672.20459397,0.00017,2]
[399312306,1766283042465,-173670.34920461,0.00017,2]
[399312307,1766283042474,-136389.37944017,0.00017,2]
[399312308,1766283042483,-150.0,0.00017,2]
[399312309,1766283042493,-150353.24349772,0.00017,2]
[399312310,1766283042502,-200.0,0.00017,2]
[399312311,1766283042511,-10117421.59379697,0.00017,2]
[399312312,1766283042521,-150.0,0.00017,2]
[399312313,1766283042530,-5147.48109482,0.00017,3]
[399312314,1766283042540,-629.61844594,0.00017,2]
[399312315,1766283042549,-34328.4362095,0.00017,2]
[399312316,1766283042716,-1058.32946893,0.00017,2]
[399312317,1766283042728,-537.47173744,0.00017,2]
[399312318,1766283042772,-7304.15101481,0.00017,2]
[399312319,1766283042933,-532.6831561,0.00017,2]
[399312322,1766283045575,-500.0,0.00017,2]
[399312323,1766283045627,-1102.0608304,0.00017,2]
[399312324,1766283045735,-3557.90738,0.00017,2]
[399312325,1766283045799,-30082.20461077,0.00017,2]
[399312405,1766283401509,3000.0,0.00022,30]
[399312463,1766283926923,1003.496667,0.000226,120]
[399312494,1766284054150,2000.0,0.000226,120]
[399312573,1766284231623,-485.76562377,0.00012478,2]
[399312577,1766284231679,-223.49737623,0.00012478,2]
[399312579,1766284231689,-175.11670734,0.00012478,2]
[399312581,1766284231700,-325.86221164,0.00012534,2]
[399312583,1766284231710,-175.06437869,0.00012534,2]
[399312585,1766284231719,-266.1193261,0.00012632,2]
[399312586,1766284231731,-33.8806739,0.00012632,2]
[399312587,1766284231741,-300.0,0.00012632,2]
[399312588,1766284231751,-1200.0,0.00012632,2]
[399312589,1766284231760,-574.13875212,0.00012633,2]
[399312590,1766284231771,-9.92964788,0.00012633,2]
[399312591,1766284231780,-22712.16035212,0.00012633,2]
[399312592,1766284231792,-868.46461215,0.00012633,2]
[399312593,1766284231809,-10749.83539884,0.00012633,2]
[399312594,1766284231821,-903.82086791,0.00012633,2]
[399312595,1766284231840,-2179.63550264,0.00012633,2]
[399312596,1766284231852,-268.99999996,0.00012633,2]
[399312597,1766284231863,-2369.38235258,0.00012633,2]
[399312598,1766284231875,-882.0686339,0.00012633,2]
[399312599,1766284231890,-3145.62502986,0.00012633,2]
[399312600,1766284231907,-1903.706576,0.00012633,2]
[399312601,1766284231918,-13889.10160957,0.00012633,2]
[399312611,1766284237775,-356.71,0.00012632,2]
[399312612,1766284237787,-192.76649865,0.00012632,2]
[399312613,1766284237796,-460.38293428,0.00012632,2]
[399312614,1766284237805,-500.0,0.00012632,2]
[399312615,1766284237815,-500.0,0.00012632,2]
[399312616,1766284237826,-30.10484614,0.00012632,2]
[399312617,1766284237886,-387.81872437,0.00012632,2]
[399312623,1766284239794,-82.07642949,0.00012632,2]
[399312624,1766284239804,-500.0,0.00012632,2]
[399312625,1766284239815,-500.0,0.00012632,2]
[399312626,1766284239824,-500.0,0.00012632,2]
[399312627,1766284239833,-500.0,0.00012632,2]
[399312628,1766284239843,-500.0,0.00012632,2]
[399312629,1766284239852,-500.0,0.00012632,2]
[399312630,1766284239862,-500.0,0.00012632,2]
[399312631,1766284239872,-389.91940163,0.00012632,2]
[399312632,1766284239881,-500.0,0.00012632,2]
[399312633,1766284239891,-500.0,0.00012632,2]
[399312634,1766284239901,-463.10846564,0.00012632,2]
[399312635,1766284240110,-36.89153436,0.00012632,2]
[399312636,1766284240120,-500.0,0.00012632,2]
[399312637,1766284240130,-500.0,0.00012632,2]
[399312638,1766284240139,-376.16784133,0.00012632,2]
[399312639,1766284240150,-123.83215867,0.00012632,2]
[399312640,1766284240160,-500.0,0.00012632,2]
[399312641,1766284240169,-500.0,0.00012632,2]
[399312642,1766284240179,-500.0,0.00012632,2]
[399312643,1766284240188,-500.0,0.00012632,2]
[399312644,1766284240197,-500.0,0.00012632,2]
[399312645,1766284240211,-500.0,0.00012632,2]
[399312646,1766284240221,-500.0,0.00012632,2]
[399312647,1766284240230,-500.0,0.00012632,2]
[399312648,1766284240239,-500.0,0.00012632,2]
[399312649,1766284240250,-940127.19906447,0.00012633,2]
[399312650,1766284240259,-214.0066534,0.00012635,2]
[399312651,1766284240269,-6991.27691405,0.00012635,2]
[399312653,1766284240279,-500.0,0.00012726,2]
[399312654,1766284240287,-500.0,0.00012726,2]
[399312655,1766284240297,-500.0,0.00012726,2]
[399312656,1766284240306,-443.09195531,0.00012726,2]
[399312657,1766284240315,-237.6187149,0.00012726,2]
[399312658,1766284240324,-151.0,0.00012726,2]
[399312659,1766284240334,-151.0,0.00012726,2]
[399312660,1766284240343,-151.0,0.00012726,2]
[399312661,1766284240352,-151.0,0.00012726,2]
[399312662,1766284240361,-151.0,0.00012726,2]
[399312663,1766284240370,-151.0,0.00012726,2]
[399312664,1766284240379,-151.0,0.00012726,2]
[399312665,1766284240388,-151.0,0.00012726,2]
[399312666,1766284240398,-151.0,0.00012726,2]
[399312667,1766284240417,-151.0,0.00012726,2]
[399312668,1766284240426,-151.0,0.00012726,2]
[399312669,1766284240435,-151.0,0.00012726,2]
[399312670,1766284240444,-1000.0,0.00012735,2]
[399312671,1766284240453,-6991.27691404,0.00013109,2]
[399312672,1766284240463,-6991.27691404,0.00013583,2]
[399312673,1766284240472,-175.06437868,0.00013665,2]
[399312674,1766284240482,-500.0,0.00013698,2]
[399312675,1766284240491,-241.3836756,0.00013698,2]
[399312676,1766284240501,-500.0,0.00013698,2]
[399312677,1766284240510,-500.0,0.00013698,2]
[399312678,1766284240520,-500.0,0.00013698,2]
[399312679,1766284240530,-310.03592822,0.00013698,2]
[399312680,1766284240539,-500.0,0.00013698,2]
[399312681,1766284240548,-500.0,0.00013698,2]
[399312683,1766284240558,-500.0,0.00013698,2]
[399312684,1766284240567,-500.0,0.00013698,2]
[399312686,1766284240576,-500.0,0.00013698,2]
[399312687,1766284240586,-500.0,0.00013698,2]
[399312688,1766284240596,-500.0,0.00013698,2]
[399312689,1766284240606,-508.60331916,0.00013698,2]
[399312690,1766284240616,-1000.0,0.00013699,2]
[399312691,1766284240627,-2500.0,0.00013726,2]
[399312692,1766284240638,-2500.0,0.00013726,2]
[399312693,1766284240648,-300.0,0.00013726,2]
[399312694,1766284240658,-300.0,0.00013726,2]
[399312695,1766284240668,-300.0,0.00013726,2]
[399312696,1766284240679,-300.0,0.00013726,2]
[399312697,1766284240690,-308.23641518,0.00013726,2]
[399312698,1766284240699,-2500.0,0.00013726,2]
[399312699,1766284240715,-1326.87911757,0.00013726,2]
[399312700,1766284240724,-2500.0,0.00013726,2]
[399312701,1766284240734,-420.0,0.00013858,2]
[399312702,1766284240743,-305.0,0.00013858,2]
[399312703,1766284240752,-500.0,0.00013873,2]
[399312704,1766284240762,-166.66,0.00014042,2]
[399312705,1766284240771,-6991.27691404,0.00014057,2]
[399312706,1766284240780,-3689.91353426,0.00014064,2]
[399312707,1766284240789,-166.66,0.00014337,2]
[399312708,1766284240799,-6991.27691404,0.00014531,2]
[399312709,1766284240808,-200.0,0.00014606,2]
[399312710,1766284240818,-166.66,0.00014633,2]
[399312711,1766284240827,-325.86221162,0.00014717,2]
[399312712,1766284240836,-175.06437868,0.00014795,2]
[399312713,1766284240846,-380.26,0.00014878,2]
[399312714,1766284240855,-166.66,0.00014929,2]
[399312715,1766284240864,-6991.27691404,0.00015004,2]
[399312716,1766284240874,-3240.0,0.00015161,2]
[399312717,1766284240884,-587.0,0.00015204,2]
[399312718,1766284240894,-166.66,0.00015224,2]
[399312719,1766284240904,-3639.0,0.00015342,2]
[399312720,1766284240914,-500.0,0.00015342,2]
[399312721,1766284240924,-518.0,0.00015463,2]
[399312722,1766284240934,-912.424,0.00015463,2]
[399312723,1766284240944,-1197.0,0.00015463,2]
[399312724,1766284240954,-1326.0,0.00015463,2]
[399312725,1766284240964,-612.0,0.00015463,2]
[399312726,1766284240974,-2429.0,0.00015463,2]
[399312727,1766284240983,-6991.27691404,0.00015478,2]
[399312728,1766284240993,-166.66,0.0001552,2]
[399312729,1766284241003,-150.73,0.00015678,2]
[399312730,1766284241012,-150.0,0.00015678,2]
[399312731,1766284241022,-150.0,0.00015678,2]
[399312732,1766284241032,-150.0,0.00015878,2]
[399312733,1766284241041,-175.06437868,0.00015926,2]
[399312734,1766284241051,-6991.27691404,0.00015952,2]
[399312735,1766284241060,-150.0,0.00016078,2]
[399312736,1766284241070,-9999.99,0.00016116,2]
[399312737,1766284241085,-151.0,0.00016149,2]
[399312738,1766284241095,-2471.02236011,0.00016149,2]
[399312739,1766284241105,-578.20924308,0.00016149,2]
[399312740,1766284241114,-719.23903586,0.00016149,2]
[399312741,1766284241124,-151.0,0.00016149,2]
[399312742,1766284241135,-668.65185757,0.00016149,2]
[399312743,1766284241144,-553.64373807,0.00016149,2]
[399312744,1766284241155,-300.0,0.00016149,2]
[399312745,1766284241167,-2346.0,0.00016149,2]
[399312746,1766284241177,-200.0,0.00016149,2]
[399312747,1766284241187,-207.4,0.00016149,2]
[399312748,1766284241197,-215.0738,0.00016149,2]
[399312749,1766284241208,-151.0,0.00016149,2]
[399312750,1766284241217,-150.0,0.00016178,2]
[399312751,1766284241227,-382.61,0.00016178,2]
[399312752,1766284241237,-150.0,0.00016178,2]
[399312753,1766284241248,-5097.1533176,0.000162,5]
[399312754,1766284241259,-276.16,0.00016213,2]
[399312755,1766284241269,-533.0,0.00016228,2]
[399312756,1766284241279,-533.0,0.0001627,2]
[399312757,1766284241289,-533.0,0.00016276,2]
[399312758,1766284241298,-533.0,0.00016298,2]
[399312759,1766284241308,-6991.27691404,0.00016426,2]
[399312760,1766284241318,-9345.4,0.00016438,2]
[399312761,1766284241327,-500.0,0.00016438,2]
[399312762,1766284241337,-500.0,0.00016438,2]
[399312763,1766284241347,-500.0,0.00016438,2]
[399312764,1766284241358,-500.0,0.00016438,2]
[399312765,1766284241367,-500.0,0.00016438,2]
[399312766,1766284241377,-500.0,0.00016438,2]
[399312767,1766284241386,-500.0,0.00016438,2]
[399312768,1766284241396,-500.0,0.00016438,2]
[399312769,1766284241407,-500.0,0.00016438,2]
[399312770,1766284241416,-500.0,0.00016438,2]
[399312771,1766284241426,-500.0,0.00016438,2]
[399312772,1766284241436,-500.0,0.00016438,2]
[399312773,1766284241446,-500.0,0.00016438,2]
[399312774,1766284241460,-500.0,0.00016438,2]
[399312775,1766284241470,-500.0,0.00016438,2]
[399312776,1766284241480,-500.0,0.00016438,2]
[399312777,1766284241490,-500.0,0.00016438,2]
[399312778,1766284241500,-500.0,0.00016438,2]
[399312779,1766284241510,-500.0,0.00016438,2]
[399312780,1766284241520,-335.87607511,0.00016438,2]
[399312781,1766284241530,-500.0,0.00016438,2]
[399312782,1766284241540,-500.0,0.00016438,2]
[399312783,1766284241550,-500.0,0.00016438,2]
[399312784,1766284241560,-500.0,0.00016438,2]
[399312785,1766284241570,-500.0,0.00016438,2]
[399312786,1766284241580,-500.0,0.00016438,2]
[399312787,1766284241590,-500.0,0.00016438,2]
[399312788,1766284241600,-600.0,0.00016438,2]
[399312789,1766284241610,-12242.3,0.00016438,2]
[399312790,1766284241620,-150.0,0.00016438,2]
[399312791,1766284241630,-553.79,0.00016438,2]
[399312792,1766284241640,-150.0,0.00016438,2]
[399312793,1766284241649,-150.0,0.00016438,2]
[399312794,1766284241660,-533.0,0.00016498,2]
[399312795,1766284241669,-500.0,0.00016499,2]
[399312796,1766284241679,-533.0,0.000165,2]
[399312797,1766284241688,-533.0,0.00016514,2]
[399312798,1766284241698,-293.0,0.00016547,2]
[399312799,1766284241707,-533.0,0.00016557,2]
[399312800,1766284241717,-293.0,0.00016623,2]
[399312801,1766284241726,-4458.42855379,0.0001666,2]
[399312802,1766284241736,-291.45263024,0.00016679,2]
[399312803,1766284241746,-823.0,0.0001668,2]
[399312804,1766284241755,-293.0,0.00016685,2]
[399312805,1766284241765,-293.0,0.00016687,2]
[399312806,1766284241774,-293.0,0.00016695,2]
[399312807,1766284241784,-153.40188186,0.00016697,2]
[399312808,1766284241793,-574.12855637,0.00016697,2]
[399312809,1766284241803,-659.21,0.00016712,2]
[399312810,1766284241816,-659.33,0.00016712,2]
[399312811,1766284241826,-659.21,0.00016712,2]
[399312812,1766284241835,-659.21,0.00016712,2]
[399312813,1766284241845,-659.21,0.00016712,2]
[399312814,1766284241855,-1318.42,0.00016712,2]
[399312815,1766284241864,-481.17,0.00016712,2]
[399312816,1766284241875,-481.17,0.00016712,2]
[399312817,1766284241885,-200.0,0.00016863,2]
[399312818,1766284241895,-200.0,0.00016864,2]
[399312819,1766284241904,-200.0,0.00016864,2]
[399312820,1766284241914,-320.7006,0.000169,2]
[399312821,1766284241923,-10000.0,0.000169,2]
[399312822,1766284241933,-415.91737958,0.000169,2]
[399312823,1766284241943,-6991.27691404,0.000169,2]
[399312824,1766284241953,-269.81249972,0.000169,2]
[399312825,1766284241963,-325.86221162,0.000169,2]
[399312826,1766284241972,-500.0,0.000169,2]
[399312827,1766284241982,-500.0,0.000169,2]
[399312828,1766284241991,-500.0,0.000169,2]
[399312829,1766284242004,-500.0,0.000169,2]
[399312830,1766284242014,-500.0,0.000169,2]
[399312831,1766284242024,-316.28731491,0.000169,2]
[399312832,1766284242034,-3690.0,0.000169,2]
[399312833,1766284242043,-293.0,0.00016903,2]
[399312834,1766284242053,-500.0,0.00016973,2]
[399312835,1766284242064,-500.0,0.00016973,2]
[399312836,1766284242073,-192.91130347,0.00016973,2]
[399312837,1766284242083,-600.0,0.00016986,2]
[399312838,1766284242093,-1346.99644034,0.00016999,5]
[399312839,1766284242102,-300.0,0.00016999,2]
[399312840,1766284242112,-300.0,0.00016999,2]
[399312841,1766284242121,-500.0,0.00016999,2]
[399312842,1766284242130,-451.68554777,0.00016999,2]
[399312843,1766284242140,-300.0,0.00016999,2]
[399312844,1766284242150,-300.0,0.00016999,2]
[399312845,1766284242160,-95234.28779936,0.00017,2]
[399312849,1766284243281,-541.82394898,0.00015463,2]
[399312862,1766284245974,-1067.17605102,0.00015463,2]
[399312863,1766284245984,-7736.77306593,0.00017,2]
[399312933,1766284554536,2000.0,0.000226,120]
[399312999,1766284924616,151.0,0.00022,30]
[399313033,1766285233433,-179.69159627,0.00012282,2]
[399313034,1766285239956,-152.83,0.00012282,2]
[399313035,1766285242695,-181.34796313,0.00012282,2]
[399313038,1766285244237,-278.73617293,0.00012282,2]
[399313040,1766285246934,-250.0,0.00012282,2]
[399313041,1766285249711,-265.14528797,0.00012282,2]
[399313042,1766285250676,-261.79085565,0.00012282,2]
[399313052,1766285253300,-206.35231761,0.00012282,2]
[399313060,1766285337919,-378.76125968,0.00012064,2]
[399313061,1766285341934,-280.22287765,0.00012064,2]
[399313062,1766285343040,-276.18542143,0.00012064,2]
[399313067,1766285413417,-326.30602263,0.00011986,2]
[399313068,1766285415425,-233.58226999,0.00011986,2]
[399313071,1766285417951,-534.03598684,0.00011986,2]
[399313072,1766285421251,-221.26382707,0.00011986,2]
[399313073,1766285424066,-167.68895809,0.00011986,2]
[399313074,1766285425436,-172.1943982,0.00011986,2]
[399313076,1766285427506,-237.13632174,0.00011986,2]
[399313083,1766285432012,-200.64221544,0.00011986,2]
[399313084,1766285432022,-119.41044124,0.00012064,2]
[399313085,1766285432032,-76.52580644,0.00012282,2]
[399313086,1766285432041,-416.06179687,0.0001233,2]
[399313087,1766285432052,-834.35701407,0.0001233,2]
[399313088,1766285432061,-151.0,0.00012423,2]
[399313089,1766285432071,-9.0203476,0.00012425,2]
[399313090,1766285432083,-1190.9796524,0.00012425,2]
[399313091,1766285432094,-300.0,0.00012425,2]
[399313092,1766285432104,-69.76790257,0.00012426,2]
[399313093,1766285432166,-52077.67959646,0.00012426,2]
[399313094,1766285432177,-30466.28240831,0.00012426,2]
[399313095,1766285432194,-357.30360357,0.00012426,2]
[399313100,1766285437938,-500.0,0.00012425,2]
[399313101,1766285437947,-500.0,0.00012425,2]
[399313102,1766285437957,-90.66059968,0.00012425,2]
[399313103,1766285438042,-409.33940032,0.00012425,2]
[399313104,1766285438053,-500.0,0.00012425,2]
[399313105,1766285438063,-500.0,0.00012425,2]
[399313106,1766285438072,-500.0,0.00012425,2]
[399313107,1766285438081,-500.0,0.00012425,2]
[399313108,1766285438090,-500.0,0.00012425,2]
[399313109,1766285438099,-401.40351784,0.00012425,2]
[399313110,1766285438109,-500.0,0.00012425,2]
[399313111,1766285438119,-500.0,0.00012425,2]
[399313112,1766285438129,-500.0,0.00012425,2]
[399313113,1766285438139,-500.0,0.00012425,2]
[399313114,1766285438149,-500.0,0.00012425,2]
[399313115,1766285438159,-500.0,0.00012425,2]
[399313116,1766285438168,-500.0,0.00012425,2]
[399313117,1766285438178,-500.0,0.00012425,2]
[399313118,1766285438187,-500.0,0.00012425,2]
[399313119,1766285438197,-500.0,0.00012425,2]
[399313120,1766285438207,-500.0,0.00012425,2]
[399313121,1766285438217,-500.0,0.00012425,2]
[399313122,1766285438226,-500.0,0.00012425,2]
[399313123,1766285438236,-500.0,0.00012425,2]
[399313124,1766285438245,-500.0,0.00012425,2]
[399313125,1766285438255,-500.0,0.00012425,2]
[399313126,1766285438265,-500.0,0.00012425,2]
[399313127,1766285438275,-668.204711,0.00012426,2]
[399313138,1766285439934,-435.41755729,0.00012426,2]
[399313139,1766285439987,-2315.09651318,0.00012426,2]
[399313140,1766285439998,-464.33648522,0.00012426,2]
[399313141,1766285440486,-1.7e-07,0.00012426,2]
[399313142,1766285440497,-913145.91122223,0.00012426,2]
[399313144,1766285440506,-300.0,0.0001243,2]
[399313145,1766285440516,-150.0,0.00012432,2]
[399313146,1766285440525,-1200.0,0.00012432,2]
[399313147,1766285440534,-214.0066534,0.00012433,2]
[399313148,1766285440543,-8941.75581628,0.00012433,2]
[399313149,1766285440555,-9656.07862675,0.00012433,2]
[399313150,1766285440565,-983.2712,0.00012433,2]
[399313151,1766285440574,-1449.75,0.00012464,2]
[399313152,1766285440583,-1098.9027,0.00012493,2]
[399313153,1766285440592,-741.76,0.00012525,2]
[399313154,1766285440602,-201.76981139,0.00012526,2]
[399313155,1766285440611,-500.0,0.00012526,2]
[399313156,1766285440620,-200.0,0.00012526,2]
[399313157,1766285440630,-500.0,0.00012526,2]
[399313158,1766285440639,-500.0,0.00012526,2]
[399313159,1766285440649,-500.0,0.00012526,2]
[399313160,1766285440658,-176.53901698,0.00012526,2]
[399313161,1766285440668,-151.0,0.00012526,2]
[399313162,1766285440681,-151.0,0.00012526,2]
[399313163,1766285440691,-500.0,0.00012526,2]
[399313164,1766285440700,-500.0,0.00012526,2]
[399313165,1766285440709,-237.6187149,0.00012526,2]
[399313166,1766285440719,-151.0,0.00012526,2]
[399313167,1766285440727,-151.0,0.00012526,2]
[399313168,1766285440736,-151.0,0.00012526,2]
[399313169,1766285440745,-151.0,0.00012526,2]
[399313170,1766285440754,-151.0,0.00012526,2]
[399313171,1766285440763,-151.0,0.00012526,2]
[399313172,1766285440772,-151.0,0.00012526,2]
[399313173,1766285440781,-151.0,0.00012526,2]
[399313174,1766285440790,-151.0,0.00012526,2]
[399313175,1766285440799,-151.0,0.00012526,2]
[399313176,1766285440810,-151.0,0.00012526,2]
[399313177,1766285440820,-151.0,0.00012526,2]
[399313178,1766285440829,-567.411,0.00012529,2]
[399313179,1766285440839,-194.46848143,0.00012529,2]
[399313180,1766285440849,-43794.33,0.00012531,2]
[399313181,1766285440868,-1270.79727083,0.00012532,3]
[399313182,1766285440878,-63210.75,0.00012532,2]
[399313183,1766285440888,-4538.37,0.00012532,2]
[399313184,1766285440898,-1175.72,0.00012532,2]
[399313185,1766285440908,-357.3036,0.00012533,2]
[399313186,1766285440918,-1000.0,0.00012533,2]
[399313187,1766285440928,-741.76,0.00012799,2]
[399313188,1766285440937,-261.93651086,0.00012919,2]
[399313189,1766285440946,-8941.75581625,0.00012929,2]
[399313190,1766285440956,-9656.07862669,0.00012929,2]
[399313191,1766285440965,-741.76,0.00013073,2]
[399313192,1766285440974,-3693.37437235,0.00013127,2]
[399313193,1766285440984,-300.0,0.00013185,2]
[399313194,1766285440995,-834.35701406,0.00013269,2]
[399313195,1766285441009,-741.76,0.00013347,2]
[399313196,1766285441018,-8941.75581625,0.00013426,2]
[399313197,1766285441028,-9656.07862669,0.00013426,2]
[399313198,1766285441037,-300.0,0.0001351,2]
[399313199,1766285441047,-300.0,0.0001351,2]
[399313200,1766285441056,-195.0,0.0001351,2]
[399313201,1766285441065,-255.0,0.00013526,2]
[399313202,1766285441075,-1054.58,0.00013572,2]
[399313203,1766285441084,-741.76,0.00013621,2]
[399313204,1766285441096,-238.018244,0.00013631,2]
[399313205,1766285441106,-420.0,0.00013634,2]
[399313206,1766285441116,-287.0,0.00013639,2]
[399313207,1766285441126,-1680.0,0.00013642,2]
[399313208,1766285441136,-1680.0,0.00013667,2]
[399313209,1766285441146,-252.99700522,0.00013674,2]
[399313210,1766285441157,-300.0,0.00013674,2]
[399313211,1766285441167,-500.0,0.00013698,2]
[399313212,1766285441176,-241.3836756,0.00013698,2]
[399313213,1766285441187,-500.0,0.00013698,2]
[399313214,1766285441196,-500.0,0.00013698,2]
[399313215,1766285441206,-500.0,0.00013698,2]
[399313216,1766285441215,-310.03592822,0.00013698,2]
[399313217,1766285441225,-500.0,0.00013698,2]
[399313218,1766285441235,-500.0,0.00013698,2]
[399313219,1766285441244,-500.0,0.00013698,2]
[399313220,1766285441255,-456.17,0.00013698,2]
[399313221,1766285441264,-500.0,0.00013698,2]
[399313222,1766285441274,-508.60331916,0.00013698,2]
[399313223,1766285441284,-500.0,0.00013698,2]
[399313224,1766285441294,-500.0,0.00013698,2]
[399313225,1766285441304,-500.0,0.00013698,2]
[399313226,1766285441313,-500.0,0.00013698,2]
[399313227,1766285441322,-500.0,0.00013698,2]
[399313228,1766285441332,-500.0,0.00013698,2]
[399313229,1766285441342,-500.0,0.00013698,2]
[399313230,1766285441351,-500.0,0.00013698,2]
[399313231,1766285441360,-500.73259307,0.00013698,2]
[399313232,1766285441371,-500.0,0.00013698,2]
[399313233,1766285441382,-500.0,0.00013698,2]
[399313234,1766285441391,-525.47116079,0.00013698,2]
[399313235,1766285441402,-235.77681134,0.00013698,2]
[399313236,1766285441411,-500.0,0.00013698,2]
[399313237,1766285441420,-500.0,0.00013698,2]
[399313238,1766285441429,-533.08291968,0.00013698,2]
[399313239,1766285441439,-500.0,0.00013698,2]
[399313240,1766285441447,-500.0,0.00013698,2]
[399313241,1766285441457,-363.24218869,0.00013698,2]
[399313242,1766285441466,-500.0,0.00013698,2]
[399313243,1766285441475,-527.18952251,0.00013698,2]
[399313244,1766285441484,-511.45159126,0.00013698,2]
[399313245,1766285441494,-500.0,0.00013698,2]
[399313246,1766285441503,-500.0,0.00013698,2]
[399313247,1766285441513,-500.0,0.00013698,2]
[399313248,1766285441522,-500.0,0.00013698,2]
[399313249,1766285441531,-500.0,0.00013698,2]
[399313250,1766285441540,-500.0,0.00013698,2]
[399313251,1766285441550,-500.0,0.00013698,2]
[399313252,1766285441562,-500.0,0.00013698,2]
[399313253,1766285441574,-500.0,0.00013698,2]
[399313254,1766285441583,-500.0,0.00013698,2]
[399313255,1766285441592,-500.0,0.00013698,2]
[399313256,1766285441602,-500.0,0.00013698,2]
[399313257,1766285441611,-503.2371588,0.00013698,2]
[399313258,1766285441621,-500.0,0.00013698,2]
[399313259,1766285441631,-236.44837755,0.00013698,2]
[399313260,1766285441640,-515.07953417,0.00013698,2]
[399313261,1766285441649,-500.0,0.00013699,2]
[399313262,1766285441658,-500.0,0.00013699,2]
[399313263,1766285441668,-500.0,0.00013699,2]
[399313264,1766285441677,-500.0,0.00013699,2]
[399313265,1766285441686,-539.14908604,0.00013699,2]
[399313266,1766285441696,-386.21911266,0.00013699,2]
[399313267,1766285441705,-391.0,0.00013715,2]
[399313268,1766285441715,-1593.0,0.00013743,2]
[399313269,1766285441725,-835.66,0.000138,2]
[399313270,1766285441734,-204.0,0.00013863,2]
[399313271,1766285441743,-506.76667563,0.00013873,2]
[399313272,1766285441753,-157.00587083,0.00013873,2]
[399313273,1766285441762,-500.0,0.00013873,2]
[399313274,1766285441771,-162.88863399,0.00013873,2]
[399313275,1766285441780,-500.0,0.00013873,2]
[399313276,1766285441790,-345.0,0.0001389,2]
[399313277,1766285441799,-741.79016109,0.00013895,2]
[399313278,1766285441808,-8941.75581625,0.00013922,2]